[Event "Early-Titled-Tuesday-Blitz-April-16-2024"]
[Site "Chess.com"]
[Date "2024.04.16"]
[Round "6"]
[White "maracayo"]
[Black "AlphaGoosee"]
[Result "1/2-1/2"]
[WhiteElo "2374"]
[BlackElo "2569"]
[TimeControl "180+1"]
[EndTime "9:07:55 PDT"]
[Termination "Game drawn by agreement"]

1. e4 {[%clk 0:03:00.9]} 1... c5 {[%clk 0:03:00.2]} 2. Nf3 {[%clk 0:03:00.4]}
2... d6 {[%clk 0:03:00.8]} 3. d3 {[%clk 0:02:56.8]} 3... Nc6 {[%clk 0:02:59.8]}
4. Be2 {[%clk 0:02:56.9]} 4... g6 {[%clk 0:03:00.3]} 5. O-O {[%clk 0:02:56.9]}
5... Bg7 {[%clk 0:03:01]} 6. c3 {[%clk 0:02:57.2]} 6... e5 {[%clk 0:03:01.4]} 7.
h3 {[%clk 0:02:57.2]} 7... Nge7 {[%clk 0:03:02]} 8. Nbd2 {[%clk 0:02:57.2]} 8...
O-O {[%clk 0:03:02.7]} 9. Re1 {[%clk 0:02:57.5]} 9... h6 {[%clk 0:03:02.8]} 10.
Bf1 {[%clk 0:02:57.6]} 10... Kh7 {[%clk 0:03:03.7]} 11. a3 {[%clk 0:02:57.5]}
11... b6 {[%clk 0:03:04.2]} 12. b4 {[%clk 0:02:57.3]} 12... Bb7 {[%clk
0:03:03.9]} 13. Bb2 {[%clk 0:02:57.3]} 13... f5 {[%clk 0:03:03.9]} 14. b5 {[%clk
0:02:43.2]} 14... Nb8 {[%clk 0:03:03.3]} 15. d4 {[%clk 0:02:42.9]} 15... fxe4
{[%clk 0:03:00.8]} 16. Nxe4 {[%clk 0:02:42.2]} 16... d5 {[%clk 0:02:52.5]} 17.
Neg5+ {[%clk 0:02:38.6]} 17... hxg5 {[%clk 0:02:50.8]} 18. Nxg5+ {[%clk
0:02:39.5]} 18... Kg8 {[%clk 0:02:51.3]} 19. Ne6 {[%clk 0:02:38.2]} 19... Qc8
{[%clk 0:02:51.4]} 20. Nxf8 {[%clk 0:02:37.5]} 20... Qxf8 {[%clk 0:02:52.3]} 21.
dxe5 {[%clk 0:02:36.3]} 21... Nd7 {[%clk 0:02:47.7]} 22. Qg4 {[%clk 0:02:21.8]}
22... Qf5 {[%clk 0:02:41.8]} 23. Rad1 {[%clk 0:01:55.5]} 23... Re8 {[%clk
0:02:35]} 24. f4 {[%clk 0:01:41]} 24... Nf8 {[%clk 0:02:29.3]} 25. Qxf5 {[%clk
0:01:27.9]} 25... gxf5 {[%clk 0:02:30.2]} 26. g3 {[%clk 0:01:26.2]} 26... Ne6
{[%clk 0:02:29.4]} 27. Bg2 {[%clk 0:01:25.3]} 27... Kf7 {[%clk 0:02:27.2]} 28.
c4 {[%clk 0:01:24.7]} 28... Rd8 {[%clk 0:02:23.6]} 29. Kf2 {[%clk 0:01:19.5]}
29... Rd7 {[%clk 0:02:22.1]} 30. a4 {[%clk 0:01:14.7]} 30... d4 {[%clk
0:02:19.7]} 31. Bxb7 {[%clk 0:01:12.7]} 31... Rxb7 {[%clk 0:02:20.6]} 32. a5
{[%clk 0:01:11.1]} 32... bxa5 {[%clk 0:02:16.8]} 33. Ra1 {[%clk 0:01:10.5]}
33... Nc8 {[%clk 0:02:09.9]} 34. Rxa5 {[%clk 0:00:54.1]} 34... Bf8 {[%clk
0:02:09.8]} 35. Kf3 {[%clk 0:00:47]} 35... Be7 {[%clk 0:02:01.9]} 36. g4 {[%clk
0:00:47.1]} 36... fxg4+ {[%clk 0:02:01.2]} 37. hxg4 {[%clk 0:00:46.6]} 37... Nb6
{[%clk 0:02:02.1]} 38. Rc1 {[%clk 0:00:39.8]} 38... Rb8 {[%clk 0:01:57.5]} 39.
g5 {[%clk 0:00:34.5]} 39... Nxg5+ {[%clk 0:01:32]} 40. fxg5 {[%clk 0:00:32.1]}
40... Bxg5 {[%clk 0:01:32.9]} 41. Rxa7+ {[%clk 0:00:31.8]} 41... Kg6 {[%clk
0:01:31.8]} 42. Rg1 {[%clk 0:00:31.3]} 42... Rf8+ {[%clk 0:01:26]} 43. Ke2
{[%clk 0:00:20.8]} 43... Nxc4 {[%clk 0:01:17.4]} 44. Bc1 {[%clk 0:00:20]} 44...
Ne3 {[%clk 0:01:16.4]} 45. Bxe3 {[%clk 0:00:17]} 45... dxe3 {[%clk 0:01:17.3]}
46. Rc7 {[%clk 0:00:15.7]} 46... Rf2+ {[%clk 0:01:16.9]} 47. Ke1 {[%clk
0:00:14]} 47... Rc2 {[%clk 0:01:13.4]} 48. Rxg5+ {[%clk 0:00:13.3]} 48... Kxg5
{[%clk 0:01:13.4]} 49. Rf7 {[%clk 0:00:13.4]} 49... Kg6 {[%clk 0:01:06.6]} 50.
Rf3 {[%clk 0:00:13]} 50... Rb2 {[%clk 0:00:58.2]} 51. e6 {[%clk 0:00:11.1]}
1/2-1/2

[Event "Early-Titled-Tuesday-Blitz-April-16-2024"]
[Site "Chess.com"]
[Date "2024.04.16"]
[Round "6"]
[White "Knightmare1014"]
[Black "Jojo_898"]
[Result "1-0"]
[WhiteElo "2316"]
[BlackElo "2452"]
[TimeControl "180+1"]
[EndTime "9:07:55 PDT"]
[Termination "Knightmare1014 won by resignation"]

1. e4 {[%clk 0:02:53.5]} 1... d6 {[%clk 0:02:58.9]} 2. d4 {[%clk 0:02:53.2]}
2... Nf6 {[%clk 0:02:59.5]} 3. Nc3 {[%clk 0:02:53.7]} 3... g6 {[%clk 0:02:58.7]}
4. Nf3 {[%clk 0:02:53.6]} 4... c6 {[%clk 0:02:59]} 5. a4 {[%clk 0:02:53]} 5...
Bg7 {[%clk 0:02:58.2]} 6. Bc4 {[%clk 0:02:53.1]} 6... O-O {[%clk 0:02:58.3]} 7.
Bb3 {[%clk 0:02:53.4]} 7... Nbd7 {[%clk 0:02:58.5]} 8. O-O {[%clk 0:02:53.5]}
8... e5 {[%clk 0:02:58.1]} 9. Re1 {[%clk 0:02:49.1]} 9... Qe7 {[%clk 0:02:53.7]}
10. h3 {[%clk 0:02:48.5]} 10... Nb6 {[%clk 0:02:47.1]} 11. Be3 {[%clk 0:02:48]}
11... Be6 {[%clk 0:02:45.3]} 12. d5 {[%clk 0:02:38.7]} 12... cxd5 {[%clk
0:02:39.5]} 13. exd5 {[%clk 0:02:38.5]} 13... Bd7 {[%clk 0:02:39.6]} 14. Bg5
{[%clk 0:02:35.1]} 14... h6 {[%clk 0:02:38.3]} 15. Bxf6 {[%clk 0:02:29.6]} 15...
Qxf6 {[%clk 0:02:35.6]} 16. Ne4 {[%clk 0:02:28.4]} 16... Qe7 {[%clk 0:02:36.1]}
17. Qd2 {[%clk 0:02:27.7]} 17... f5 {[%clk 0:02:35.5]} 18. Nc3 {[%clk
0:02:24.2]} 18... Rac8 {[%clk 0:02:32.8]} 19. Nd4 {[%clk 0:02:21]} 19... a6
{[%clk 0:02:28.4]} 20. Ne6 {[%clk 0:02:13]} 20... Bxe6 {[%clk 0:02:25.9]} 21.
dxe6 {[%clk 0:02:13.9]} 21... Nc4 {[%clk 0:02:17.4]} 22. Bxc4 {[%clk 0:01:58.6]}
22... Rxc4 {[%clk 0:02:16.7]} 23. Rad1 {[%clk 0:01:58.9]} 23... Rd8 {[%clk
0:02:10.8]} 24. Qd5 {[%clk 0:01:57.5]} 24... Rc5 {[%clk 0:02:10.5]} 25. Qb3
{[%clk 0:01:57]} 25... Kh7 {[%clk 0:02:06.3]} 26. Nd5 {[%clk 0:01:51.4]} 26...
Qxe6 {[%clk 0:02:03.5]} 27. Qxb7 {[%clk 0:01:51.5]} 27... Rxc2 {[%clk
0:01:51.8]} 28. Ne3 {[%clk 0:01:38]} 28... Rc5 {[%clk 0:01:37.2]} 29. Qxa6
{[%clk 0:01:37]} 29... f4 {[%clk 0:01:37.5]} 30. Nf1 {[%clk 0:01:29.2]} 30...
Rc2 {[%clk 0:01:36.2]} 31. b4 {[%clk 0:01:28.9]} 31... Qa2 {[%clk 0:01:33.2]}
32. Qb6 {[%clk 0:01:19.4]} 32... Rd7 {[%clk 0:01:23]} 33. a5 {[%clk 0:01:18.3]}
33... d5 {[%clk 0:01:13.8]} 34. Nh2 {[%clk 0:01:09]} 34... e4 {[%clk 0:01:03.2]}
35. Rf1 {[%clk 0:00:52]} 35... e3 {[%clk 0:00:56.2]} 36. Rc1 {[%clk 0:00:48]}
36... exf2+ {[%clk 0:00:51.6]} 37. Kh1 {[%clk 0:00:47.5]} 37... d4 {[%clk
0:00:46.3]} 38. Rxc2 {[%clk 0:00:45.3]} 38... Qxc2 {[%clk 0:00:45.8]} 39. Qb5
{[%clk 0:00:45.5]} 39... d3 {[%clk 0:00:45.1]} 40. Qxd7 {[%clk 0:00:45.3]} 40...
Qe2 {[%clk 0:00:28.3]} 41. a6 {[%clk 0:00:44]} 41... f3 {[%clk 0:00:26.2]} 42.
gxf3 {[%clk 0:00:38.4]} 1-0

[Event "Early-Titled-Tuesday-Blitz-April-16-2024"]
[Site "Chess.com"]
[Date "2024.04.16"]
[Round "6"]
[White "flawian2008"]
[Black "MdChess1734"]
[Result "1-0"]
[WhiteElo "2553"]
[BlackElo "2361"]
[TimeControl "180+1"]
[EndTime "9:07:58 PDT"]
[Termination "flawian2008 won on time"]

1. e4 {[%clk 0:03:00.9]} 1... c6 {[%clk 0:02:55.9]} 2. d4 {[%clk 0:03:01]} 2...
d5 {[%clk 0:02:56]} 3. Nc3 {[%clk 0:03:01.6]} 3... dxe4 {[%clk 0:02:56.2]} 4.
Nxe4 {[%clk 0:03:02.5]} 4... Bf5 {[%clk 0:02:56.5]} 5. Ng3 {[%clk 0:03:02.9]}
5... Bg6 {[%clk 0:02:55.6]} 6. Nh3 {[%clk 0:03:03.6]} 6... Nf6 {[%clk
0:02:52.2]} 7. Nf4 {[%clk 0:03:03.2]} 7... e5 {[%clk 0:02:52.1]} 8. dxe5 {[%clk
0:03:03.5]} 8... Qa5+ {[%clk 0:02:47.9]} 9. Bd2 {[%clk 0:02:58.6]} 9... Qxe5+
{[%clk 0:02:48.4]} 10. Be2 {[%clk 0:02:58]} 10... Nbd7 {[%clk 0:02:46.8]} 11.
Nxg6 {[%clk 0:02:55.6]} 11... hxg6 {[%clk 0:02:45.6]} 12. Bc3 {[%clk 0:02:54.7]}
12... Qe6 {[%clk 0:02:34.3]} 13. O-O {[%clk 0:02:51.5]} 13... O-O-O {[%clk
0:02:34.1]} 14. Qd4 {[%clk 0:02:36.6]} 14... Bc5 {[%clk 0:02:30.9]} 15. Qc4
{[%clk 0:02:31.6]} 15... Qe7 {[%clk 0:02:17.5]} 16. Rae1 {[%clk 0:02:24.8]}
16... Nd5 {[%clk 0:02:10.8]} 17. Bf3 {[%clk 0:02:12.7]} 17... Qg5 {[%clk
0:01:49.4]} 18. b4 {[%clk 0:01:49.8]} 18... Rh4 {[%clk 0:00:37.7]} 19. Re4
{[%clk 0:01:32.6]} 19... Rdh8 {[%clk 0:00:34.2]} 20. bxc5 {[%clk 0:00:59.6]}
20... Rxh2 {[%clk 0:00:29.9]} 21. Bxg7 {[%clk 0:00:57.8]} 21... R8h7 {[%clk
0:00:22.6]} 22. Rg4 {[%clk 0:00:52.3]} 22... Qe7 {[%clk 0:00:12.5]} 23. Bxd5
{[%clk 0:00:41.3]} 23... f5 {[%clk 0:00:08.3]} 24. Rxg6 {[%clk 0:00:30.7]} 24...
cxd5 {[%clk 0:00:06.5]} 25. Qf4 {[%clk 0:00:19.2]} 25... R2h4 {[%clk 0:00:03.6]}
26. Qxf5 {[%clk 0:00:18.5]} 26... Rxg7 {[%clk 0:00:02.3]} 27. Rxg7 {[%clk
0:00:18.8]} 27... Qxg7 {[%clk 0:00:02.9]} 28. Re1 {[%clk 0:00:19]} 28... Rd4
{[%clk 0:00:02.5]} 29. Qe6 {[%clk 0:00:14.7]} 29... Kc7 {[%clk 0:00:02.8]} 30.
Nf5 {[%clk 0:00:14.7]} 1-0

[Event "Early-Titled-Tuesday-Blitz-April-16-2024"]
[Site "Chess.com"]
[Date "2024.04.16"]
[Round "6"]
[White "bobo_panda"]
[Black "PositionalPanther"]
[Result "0-1"]
[WhiteElo "2351"]
[BlackElo "2524"]
[TimeControl "180+1"]
[EndTime "9:07:58 PDT"]
[Termination "PositionalPanther won on time"]

1. e4 {[%clk 0:03:00.9]} 1... a6 {[%clk 0:02:49.3]} 2. d4 {[%clk 0:03:00.2]}
2... c6 {[%clk 0:02:49]} 3. c4 {[%clk 0:02:58.4]} 3... e6 {[%clk 0:02:47.7]} 4.
Nc3 {[%clk 0:02:56.9]} 4... b5 {[%clk 0:02:44.1]} 5. Nf3 {[%clk 0:02:54]} 5...
b4 {[%clk 0:02:42.9]} 6. Na4 {[%clk 0:02:53.8]} 6... d5 {[%clk 0:02:42.9]} 7.
exd5 {[%clk 0:02:52.5]} 7... cxd5 {[%clk 0:02:41.4]} 8. c5 {[%clk 0:02:52.4]}
8... Nd7 {[%clk 0:02:20.2]} 9. Bf4 {[%clk 0:02:49.3]} 9... Bb7 {[%clk
0:02:17.1]} 10. b3 {[%clk 0:02:44.2]} 10... Bc6 {[%clk 0:02:16.6]} 11. Nb2
{[%clk 0:02:42.9]} 11... a5 {[%clk 0:02:15.6]} 12. Bd3 {[%clk 0:02:41.2]} 12...
Be7 {[%clk 0:02:13]} 13. O-O {[%clk 0:02:39.4]} 13... h5 {[%clk 0:02:12.4]} 14.
Qe2 {[%clk 0:02:31.6]} 14... g5 {[%clk 0:02:11.7]} 15. Bd6 {[%clk 0:02:29.1]}
15... Bxd6 {[%clk 0:02:10.6]} 16. cxd6 {[%clk 0:02:29]} 16... g4 {[%clk
0:01:38.5]} 17. Ne5 {[%clk 0:02:28.5]} 17... Nxe5 {[%clk 0:01:37.8]} 18. dxe5
{[%clk 0:02:28.5]} 18... Bd7 {[%clk 0:01:32.1]} 19. Rac1 {[%clk 0:02:18.2]}
19... f6 {[%clk 0:01:28.4]} 20. Rc7 {[%clk 0:02:13.7]} 20... fxe5 {[%clk
0:01:25.7]} 21. Bb5 {[%clk 0:02:12.9]} 21... Rh7 {[%clk 0:01:11.6]} 22. Rfc1
{[%clk 0:01:18.6]} 22... e4 {[%clk 0:01:06.2]} 23. Na4 {[%clk 0:01:08.3]} 23...
Rb8 {[%clk 0:01:02.8]} 24. Bc6 {[%clk 0:00:57.3]} 24... Nf6 {[%clk 0:00:46.2]}
25. Nc5 {[%clk 0:00:42]} 25... Bxc6 {[%clk 0:00:36.9]} 26. Nxe6 {[%clk
0:00:39.5]} 26... Qxd6 {[%clk 0:00:19.4]} 27. R1xc6 {[%clk 0:00:37]} 27... Qe5
{[%clk 0:00:19.3]} 28. g3 {[%clk 0:00:11.5]} 28... Rxc7 {[%clk 0:00:17.5]} 29.
Nxc7+ {[%clk 0:00:10.9]} 29... Kd7 {[%clk 0:00:17.4]} 30. Rc1 {[%clk 0:00:06.6]}
30... Rb7 {[%clk 0:00:15.2]} 31. Qb2 {[%clk 0:00:05.1]} 31... Qxb2 {[%clk
0:00:14.4]} 0-1

[Event "Early-Titled-Tuesday-Blitz-April-16-2024"]
[Site "Chess.com"]
[Date "2024.04.16"]
[Round "6"]
[White "VacheH009"]
[Black "Flaccidmoves"]
[Result "1-0"]
[WhiteElo "2627"]
[BlackElo "2415"]
[TimeControl "180+1"]
[EndTime "9:08:00 PDT"]
[Termination "VacheH009 won by resignation"]

1. e4 {[%clk 0:03:00.9]} 1... e6 {[%clk 0:02:58.6]} 2. d4 {[%clk 0:02:57.3]}
2... d5 {[%clk 0:02:59]} 3. Nd2 {[%clk 0:02:58]} 3... c5 {[%clk 0:02:58.5]} 4.
exd5 {[%clk 0:02:47.9]} 4... exd5 {[%clk 0:02:59.4]} 5. Ngf3 {[%clk 0:02:45.2]}
5... Nf6 {[%clk 0:02:57.4]} 6. Qe2+ {[%clk 0:02:34.1]} 6... Be7 {[%clk
0:02:43.6]} 7. dxc5 {[%clk 0:02:30.6]} 7... O-O {[%clk 0:02:44.1]} 8. Nb3 {[%clk
0:02:23]} 8... Re8 {[%clk 0:02:42.9]} 9. Be3 {[%clk 0:02:19.7]} 9... Ng4 {[%clk
0:02:34.5]} 10. O-O-O {[%clk 0:02:10.8]} 10... Nxe3 {[%clk 0:02:32.1]} 11. Qxe3
{[%clk 0:02:07.2]} 11... a5 {[%clk 0:02:17.3]} 12. Bb5 {[%clk 0:01:51.6]} 12...
Nc6 {[%clk 0:02:12.4]} 13. a4 {[%clk 0:01:46.3]} 13... Bf5 {[%clk 0:01:56.7]}
14. Rhe1 {[%clk 0:01:40.1]} 14... Qd7 {[%clk 0:01:43.2]} 15. Qf4 {[%clk
0:01:12]} 15... Bf6 {[%clk 0:01:28.1]} 16. Nbd4 {[%clk 0:00:57.5]} 16... Be4
{[%clk 0:01:19]} 17. Nxc6 {[%clk 0:00:50.3]} 17... bxc6 {[%clk 0:01:17.1]} 18.
Rxe4 {[%clk 0:00:45.9]} 18... cxb5 {[%clk 0:01:14.2]} 19. Rxe8+ {[%clk
0:00:44.7]} 19... Rxe8 {[%clk 0:01:13.2]} 20. Qd6 {[%clk 0:00:40.8]} 20... Qg4
{[%clk 0:00:59]} 21. Qc6 {[%clk 0:00:22]} 21... Rb8 {[%clk 0:00:19.5]} 22. Qc7
{[%clk 0:00:21.6]} 22... Rd8 {[%clk 0:00:17.8]} 23. Qxa5 {[%clk 0:00:17.1]}
23... b4 {[%clk 0:00:13.7]} 24. c6 {[%clk 0:00:14]} 24... h5 {[%clk 0:00:12.8]}
25. Rxd5 {[%clk 0:00:12.1]} 25... Qf4+ {[%clk 0:00:11.2]} 26. Kb1 {[%clk
0:00:11]} 26... Rc8 {[%clk 0:00:11.7]} 27. Rc5 {[%clk 0:00:06.5]} 27... b3
{[%clk 0:00:08.6]} 28. Qd2 {[%clk 0:00:05.1]} 28... bxc2+ {[%clk 0:00:08]} 29.
Qxc2 {[%clk 0:00:05]} 29... h4 {[%clk 0:00:06]} 30. h3 {[%clk 0:00:04.5]} 30...
Qe4 {[%clk 0:00:06.1]} 31. Qxe4 {[%clk 0:00:04]} 1-0

[Event "Early-Titled-Tuesday-Blitz-April-16-2024"]
[Site "Chess.com"]
[Date "2024.04.16"]
[Round "6"]
[White "bylavochka"]
[Black "HaryKane"]
[Result "0-1"]
[WhiteElo "2356"]
[BlackElo "2537"]
[TimeControl "180+1"]
[EndTime "9:08:00 PDT"]
[Termination "HaryKane won on time"]

1. e4 {[%clk 0:03:00.9]} 1... e6 {[%clk 0:02:58.7]} 2. d4 {[%clk 0:03:00.7]}
2... d5 {[%clk 0:02:58.6]} 3. Bd3 {[%clk 0:02:59.8]} 3... dxe4 {[%clk
0:02:55.1]} 4. Bxe4 {[%clk 0:03:00.7]} 4... Nd7 {[%clk 0:02:54.4]} 5. Ne2 {[%clk
0:02:59]} 5... Ngf6 {[%clk 0:02:49.4]} 6. Bf3 {[%clk 0:02:58.9]} 6... c5 {[%clk
0:02:46.4]} 7. Be3 {[%clk 0:02:56.3]} 7... Qb6 {[%clk 0:02:38.4]} 8. Qc1 {[%clk
0:02:32.7]} 8... Nd5 {[%clk 0:02:29.3]} 9. Bxd5 {[%clk 0:02:31.1]} 9... exd5
{[%clk 0:02:30.2]} 10. O-O {[%clk 0:02:27.5]} 10... Bd6 {[%clk 0:02:11.5]} 11.
Nbc3 {[%clk 0:02:16.3]} 11... O-O {[%clk 0:01:52.4]} 12. Nxd5 {[%clk 0:02:11.3]}
12... Qc6 {[%clk 0:01:52.7]} 13. Ndc3 {[%clk 0:02:05.6]} 13... Nf6 {[%clk
0:01:47.5]} 14. dxc5 {[%clk 0:02:02.3]} 14... Bxc5 {[%clk 0:01:34.7]} 15. Bxc5
{[%clk 0:01:54.2]} 15... Qxc5 {[%clk 0:01:35.6]} 16. Ng3 {[%clk 0:01:54.4]}
16... Be6 {[%clk 0:01:31.2]} 17. Re1 {[%clk 0:01:35]} 17... Rac8 {[%clk
0:01:28.3]} 18. h3 {[%clk 0:01:13.4]} 18... b5 {[%clk 0:01:26.5]} 19. a3 {[%clk
0:01:13.1]} 19... a5 {[%clk 0:01:26]} 20. Qf4 {[%clk 0:00:51.7]} 20... b4 {[%clk
0:01:19]} 21. Re5 {[%clk 0:00:37.5]} 21... Qc7 {[%clk 0:01:08.5]} 22. axb4
{[%clk 0:00:29.9]} 22... axb4 {[%clk 0:01:06.2]} 23. Nb5 {[%clk 0:00:29.4]}
23... Qxc2 {[%clk 0:00:57.4]} 24. Qxb4 {[%clk 0:00:29.4]} 24... Rc4 {[%clk
0:00:38.4]} 25. Qa3 {[%clk 0:00:19]} 25... h6 {[%clk 0:00:22.6]} 26. Nc3 {[%clk
0:00:18.5]} 26... Rb8 {[%clk 0:00:20.4]} 27. Ra2 {[%clk 0:00:06.2]} 27... Rxc3
{[%clk 0:00:18]} 28. Qxc3 {[%clk 0:00:04.6]} 28... Qxc3 {[%clk 0:00:17.7]} 29.
bxc3 {[%clk 0:00:04.7]} 29... Bxa2 {[%clk 0:00:18.3]} 30. Nf5 {[%clk 0:00:02]}
30... Be6 {[%clk 0:00:16]} 31. Ne7+ {[%clk 0:00:01.8]} 31... Kf8 {[%clk
0:00:14.7]} 32. Nc6 {[%clk 0:00:02.7]} 32... Rc8 {[%clk 0:00:14.6]} 33. Rc5
{[%clk 0:00:02.6]} 33... Nd7 {[%clk 0:00:12.6]} 0-1

[Event "Early-Titled-Tuesday-Blitz-April-16-2024"]
[Site "Chess.com"]
[Date "2024.04.16"]
[Round "6"]
[White "ploxoi"]
[Black "Devil_Sun"]
[Result "0-1"]
[WhiteElo "2413"]
[BlackElo "2624"]
[TimeControl "180+1"]
[EndTime "9:08:05 PDT"]
[Termination "Devil_Sun won by resignation"]

1. d4 {[%clk 0:03:00.9]} 1... Nf6 {[%clk 0:02:56]} 2. c4 {[%clk 0:02:58.4]} 2...
e6 {[%clk 0:02:55.9]} 3. g3 {[%clk 0:02:58.9]} 3... d5 {[%clk 0:02:54.9]} 4. Nf3
{[%clk 0:02:59.2]} 4... Bb4+ {[%clk 0:02:43.6]} 5. Bd2 {[%clk 0:02:57.9]} 5...
Be7 {[%clk 0:02:41.9]} 6. Bg2 {[%clk 0:02:57.5]} 6... O-O {[%clk 0:02:33.3]} 7.
O-O {[%clk 0:02:54.6]} 7... c6 {[%clk 0:02:25.8]} 8. Qc2 {[%clk 0:02:54.1]} 8...
Nbd7 {[%clk 0:02:23.4]} 9. Rd1 {[%clk 0:02:53]} 9... b6 {[%clk 0:02:13]} 10. Bf4
{[%clk 0:02:53]} 10... Bb7 {[%clk 0:02:12.4]} 11. Nc3 {[%clk 0:02:53.2]} 11...
Rc8 {[%clk 0:02:09.7]} 12. e4 {[%clk 0:02:52.3]} 12... dxe4 {[%clk 0:01:49.6]}
13. Nxe4 {[%clk 0:02:51.2]} 13... Nxe4 {[%clk 0:01:49.2]} 14. Qxe4 {[%clk
0:02:51.7]} 14... Nf6 {[%clk 0:01:49.2]} 15. Qe2 {[%clk 0:02:51]} 15... h6
{[%clk 0:01:42.7]} 16. a3 {[%clk 0:02:46]} 16... Bd6 {[%clk 0:01:37.7]} 17. Ne5
{[%clk 0:02:43.6]} 17... Qe7 {[%clk 0:01:23.4]} 18. b4 {[%clk 0:02:37.9]} 18...
c5 {[%clk 0:01:10]} 19. Bxb7 {[%clk 0:02:36.1]} 19... Qxb7 {[%clk 0:01:08.1]}
20. dxc5 {[%clk 0:02:36.4]} 20... Bxe5 {[%clk 0:01:04]} 21. Bxe5 {[%clk
0:02:37.3]} 21... bxc5 {[%clk 0:01:04.5]} 22. Bd6 {[%clk 0:02:37]} 22... Rfe8
{[%clk 0:00:56.1]} 23. Bxc5 {[%clk 0:02:35.8]} 23... Ne4 {[%clk 0:00:55.4]} 24.
Bd4 {[%clk 0:01:34.4]} 24... Ng5 {[%clk 0:00:33.5]} 25. f3 {[%clk 0:01:33.7]}
25... Nxf3+ {[%clk 0:00:21]} 26. Kf2 {[%clk 0:01:33.9]} 26... Ng5 {[%clk
0:00:19.1]} 27. Rac1 {[%clk 0:00:50.7]} 27... e5 {[%clk 0:00:12.9]} 28. Bb2
{[%clk 0:00:26.7]} 28... Nh3+ {[%clk 0:00:12]} 29. Ke1 {[%clk 0:00:27]} 29...
Rcd8 {[%clk 0:00:09.6]} 30. Rxd8 {[%clk 0:00:12.2]} 30... Rxd8 {[%clk
0:00:10.5]} 31. Rd1 {[%clk 0:00:12]} 31... Qh1+ {[%clk 0:00:09.9]} 32. Qf1
{[%clk 0:00:12]} 32... Rxd1+ {[%clk 0:00:10.4]} 33. Kxd1 {[%clk 0:00:11]} 33...
Qxf1+ {[%clk 0:00:11.3]} 0-1

[Event "Early-Titled-Tuesday-Blitz-April-16-2024"]
[Site "Chess.com"]
[Date "2024.04.16"]
[Round "6"]
[White "mokerslag"]
[Black "AlessiaSanteramo"]
[Result "1-0"]
[WhiteElo "2509"]
[BlackElo "2325"]
[TimeControl "180+1"]
[EndTime "9:08:08 PDT"]
[Termination "mokerslag won on time"]

1. e4 {[%clk 0:03:00.5]} 1... e5 {[%clk 0:02:55.9]} 2. Nf3 {[%clk 0:03:00.3]}
2... Nc6 {[%clk 0:02:54.3]} 3. Bc4 {[%clk 0:03:00.5]} 3... Nf6 {[%clk
0:02:53.1]} 4. Ng5 {[%clk 0:03:00.2]} 4... d5 {[%clk 0:02:44.6]} 5. exd5 {[%clk
0:03:01.1]} 5... Na5 {[%clk 0:02:44.7]} 6. Bb5+ {[%clk 0:03:01.2]} 6... Bd7
{[%clk 0:02:45.2]} 7. Qe2 {[%clk 0:03:00.5]} 7... Be7 {[%clk 0:02:45.1]} 8. Nc3
{[%clk 0:02:59.7]} 8... Bxb5 {[%clk 0:02:39.5]} 9. Qxb5+ {[%clk 0:02:58.9]} 9...
c6 {[%clk 0:02:39.8]} 10. dxc6 {[%clk 0:02:57.8]} 10... Nxc6 {[%clk 0:02:40.4]}
11. Qxb7 {[%clk 0:02:37.9]} 11... Nd4 {[%clk 0:02:40.1]} 12. O-O {[%clk
0:02:37.1]} 12... Rb8 {[%clk 0:02:34.3]} 13. Qxa7 {[%clk 0:02:33.1]} 13... Nd7
{[%clk 0:02:34]} 14. Nge4 {[%clk 0:02:20.7]} 14... f5 {[%clk 0:02:33.4]} 15. Ng3
{[%clk 0:02:12.6]} 15... Nc5 {[%clk 0:02:31.3]} 16. Nd5 {[%clk 0:01:44.3]} 16...
Rb7 {[%clk 0:02:15.1]} 17. Qa3 {[%clk 0:01:12.6]} 17... Qxd5 {[%clk 0:02:05.3]}
18. b4 {[%clk 0:01:12.8]} 18... Ne4 {[%clk 0:01:26]} 19. c4 {[%clk 0:00:52.6]}
19... Qd8 {[%clk 0:00:57.6]} 20. c5 {[%clk 0:00:29.2]} 20... Nxg3 {[%clk
0:00:45.3]} 21. hxg3 {[%clk 0:00:30.1]} 21... O-O {[%clk 0:00:45.5]} 22. Re1
{[%clk 0:00:29]} 22... Kh8 {[%clk 0:00:39.9]} 23. Qc3 {[%clk 0:00:25.2]} 23...
Bf6 {[%clk 0:00:36.7]} 24. Bb2 {[%clk 0:00:24.2]} 24... e4 {[%clk 0:00:34.1]}
25. Qc4 {[%clk 0:00:23.5]} 25... Qd7 {[%clk 0:00:08.3]} 26. Bc3 {[%clk
0:00:23.5]} 26... Nc6 {[%clk 0:00:06]} 27. Rab1 {[%clk 0:00:21.7]} 27... Ne5
{[%clk 0:00:05.1]} 28. Bxe5 {[%clk 0:00:20.2]} 28... Bxe5 {[%clk 0:00:06]} 29.
c6 {[%clk 0:00:20.8]} 29... Qc7 {[%clk 0:00:06.6]} 30. b5 {[%clk 0:00:21.1]}
30... Rb6 {[%clk 0:00:07.1]} 31. a4 {[%clk 0:00:21.2]} 31... Rfb8 {[%clk
0:00:06.9]} 32. a5 {[%clk 0:00:20.6]} 32... R6b7 {[%clk 0:00:06.2]} 33. b6
{[%clk 0:00:16.7]} 33... Qc8 {[%clk 0:00:01.7]} 34. Rb5 {[%clk 0:00:15.5]} 34...
Bf6 {[%clk 0:00:01.5]} 35. Reb1 {[%clk 0:00:15.3]} 35... Rf7 {[%clk 0:00:01.8]}
36. Qxf7 {[%clk 0:00:14.8]} 1-0